[Event "*** MasterClass Titled Tuesday Blitz"]
[Site "Chess.com"]
[Date "2017.12.12"]
[Round "8"]
[White "mazetofonias"]
[Black "JSMastropiero"]
[Result "0-1"]
[WhiteElo "2446"]
[BlackElo "2327"]
[TimeControl "180+2"]
[EndTime "14:52:43 PST"]
[Termination "JSMastropiero won by resignation"]

1. e4 {[%clk 0:03:01.9]} 1... e5 {[%clk 0:03:00.3]} 2. Nf3 {[%clk 0:03:03.1]}
2... Nc6 {[%clk 0:03:01.2]} 3. Bc4 {[%clk 0:03:03.8]} 3... Nf6 {[%clk
0:03:01.1]} 4. d3 {[%clk 0:03:04.3]} 4... Be7 {[%clk 0:03:02.1]} 5. c3 {[%clk
0:03:05.5]} 5... O-O {[%clk 0:03:01.4]} 6. Bb3 {[%clk 0:03:06.7]} 6... d6 {[%clk
0:02:57.3]} 7. Nbd2 {[%clk 0:03:07.8]} 7... Na5 {[%clk 0:02:57.9]} 8. Bc2 {[%clk
0:03:08.5]} 8... c5 {[%clk 0:02:58.8]} 9. O-O {[%clk 0:03:07.8]} 9... Nc6 {[%clk
0:02:59.4]} 10. a4 {[%clk 0:03:07.6]} 10... Re8 {[%clk 0:02:58]} 11. Re1 {[%clk
0:03:08.1]} 11... Bf8 {[%clk 0:02:58.6]} 12. Nc4 {[%clk 0:03:09]} 12... h6
{[%clk 0:02:58.1]} 13. Ne3 {[%clk 0:03:08.8]} 13... g6 {[%clk 0:02:53.4]} 14. h3
{[%clk 0:03:08.7]} 14... d5 {[%clk 0:02:49.1]} 15. exd5 {[%clk 0:03:05.5]} 15...
Nxd5 {[%clk 0:02:48.9]} 16. Nxd5 {[%clk 0:03:06.9]} 16... Qxd5 {[%clk
0:02:49.6]} 17. Bb3 {[%clk 0:03:08.4]} 17... Qd8 {[%clk 0:02:44.1]} 18. Be3
{[%clk 0:02:59.3]} 18... Be6 {[%clk 0:02:38.4]} 19. Bc2 {[%clk 0:02:55.7]} 19...
b6 {[%clk 0:02:32]} 20. Nd2 {[%clk 0:02:55.5]} 20... Bg7 {[%clk 0:02:29.3]} 21.
Qf3 {[%clk 0:02:51.5]} 21... Qd7 {[%clk 0:02:25.8]} 22. Qg3 {[%clk 0:02:40.2]}
22... Bf5 {[%clk 0:02:09.4]} 23. Ne4 {[%clk 0:02:38.8]} 23... Qe6 {[%clk
0:01:54.3]} 24. Bb1 {[%clk 0:02:25.9]} 24... Na5 {[%clk 0:01:36.2]} 25. Ba2
{[%clk 0:02:25.8]} 25... c4 {[%clk 0:01:35.2]} 26. Rad1 {[%clk 0:02:19.5]} 26...
Bxe4 {[%clk 0:01:33.8]} 27. dxe4 {[%clk 0:02:18.8]} 27... Qc6 {[%clk 0:01:33.9]}
28. Bb1 {[%clk 0:02:14.7]} 28... Qxa4 {[%clk 0:01:32.1]} 29. f4 {[%clk
0:02:16.3]} 29... exf4 {[%clk 0:01:28.7]} 30. Bxf4 {[%clk 0:02:18.2]} 30... Rad8
{[%clk 0:01:28.4]} 31. Rxd8 {[%clk 0:02:13.2]} 31... Rxd8 {[%clk 0:01:28.7]} 32.
Qf3 {[%clk 0:02:14.4]} 32... Qd7 {[%clk 0:01:21.1]} 33. e5 {[%clk 0:02:14.2]}
33... Re8 {[%clk 0:01:08]} 34. Bc2 {[%clk 0:02:10.1]} 34... Nc6 {[%clk
0:01:05.5]} 35. Qg3 {[%clk 0:02:08.8]} 35... g5 {[%clk 0:01:02.3]} 36. Bc1
{[%clk 0:01:45.2]} 36... Rxe5 {[%clk 0:00:51.8]} 37. Qf2 {[%clk 0:01:47.1]}
37... Rxe1+ {[%clk 0:00:48.8]} 38. Qxe1 {[%clk 0:01:48.6]} 38... Qe6 {[%clk
0:00:41.9]} 39. Qf2 {[%clk 0:01:49.1]} 39... Ne5 {[%clk 0:00:36.6]} 40. Qe2
{[%clk 0:01:25.7]} 40... Qd5 {[%clk 0:00:34.6]} 41. Bf5 {[%clk 0:01:22]} 41...
Bf6 {[%clk 0:00:28.8]} 42. Kh1 {[%clk 0:01:19.4]} 42... Kg7 {[%clk 0:00:28.4]}
43. Be4 {[%clk 0:01:16.8]} 43... Qd6 {[%clk 0:00:24.9]} 44. Be3 {[%clk
0:01:16.8]} 44... Nd3 {[%clk 0:00:24.8]} 45. Qf3 {[%clk 0:01:17.4]} 45... Nxb2
{[%clk 0:00:16.4]} 46. Qf5 {[%clk 0:01:16.4]} 46... Kf8 {[%clk 0:00:13.6]} 47.
Qh7 {[%clk 0:01:11.4]} 47... Qd1+ {[%clk 0:00:12.6]} 48. Kh2 {[%clk 0:01:12]}
48... Be5+ {[%clk 0:00:13.2]} 49. g3 {[%clk 0:01:07.7]} 49... Qe2+ {[%clk
0:00:14.2]} 50. Kh1 {[%clk 0:01:08.6]} 50... Qxe3 {[%clk 0:00:12.1]} 51. Qxh6+
{[%clk 0:01:08.5]} 51... Ke7 {[%clk 0:00:11.1]} 52. Qxg5+ {[%clk 0:01:06.2]}
52... Qxg5 {[%clk 0:00:11.5]} 0-1

[Event "*** MasterClass Titled Tuesday Blitz"]
[Site "Chess.com"]
[Date "2017.12.12"]
[Round "8"]
[White "truki"]
[Black "champ1000"]
[Result "0-1"]
[WhiteElo "2211"]
[BlackElo "2268"]
[TimeControl "180+2"]
[EndTime "14:52:44 PST"]
[Termination "champ1000 won by resignation"]

1. d4 {[%clk 0:03:01.9]} 1... Nf6 {[%clk 0:03:00.5]} 2. c4 {[%clk 0:03:02.1]}
2... g6 {[%clk 0:03:00.6]} 3. Nc3 {[%clk 0:03:03.2]} 3... Bg7 {[%clk 0:03:01.5]}
4. e4 {[%clk 0:03:04.1]} 4... d6 {[%clk 0:03:02.2]} 5. h3 {[%clk 0:03:05.5]}
5... O-O {[%clk 0:03:03.6]} 6. Nf3 {[%clk 0:03:07]} 6... e5 {[%clk 0:03:02.8]}
7. d5 {[%clk 0:03:07.8]} 7... Nh5 {[%clk 0:03:03.2]} 8. Nh2 {[%clk 0:03:04.3]}
8... Kh8 {[%clk 0:02:53.3]} 9. g3 {[%clk 0:02:57.2]} 9... a5 {[%clk 0:02:45.1]}
10. Be3 {[%clk 0:02:53.1]} 10... Na6 {[%clk 0:02:27.6]} 11. h4 {[%clk
0:02:52.5]} 11... Nc5 {[%clk 0:02:27.1]} 12. Be2 {[%clk 0:02:49.1]} 12... Nf6
{[%clk 0:02:27.4]} 13. Qc2 {[%clk 0:02:41.4]} 13... h5 {[%clk 0:02:21]} 14. f3
{[%clk 0:02:40]} 14... c6 {[%clk 0:02:18.2]} 15. O-O-O {[%clk 0:02:39.9]} 15...
cxd5 {[%clk 0:02:19]} 16. cxd5 {[%clk 0:02:37.1]} 16... Bd7 {[%clk 0:02:10.5]}
17. Bb5 {[%clk 0:02:33.8]} 17... Rc8 {[%clk 0:02:04.4]} 18. Bxd7 {[%clk
0:02:33.2]} 18... Qxd7 {[%clk 0:01:56.5]} 19. Kb1 {[%clk 0:02:33.6]} 19... b5
{[%clk 0:01:55.6]} 20. Qd2 {[%clk 0:02:19.8]} 20... b4 {[%clk 0:01:48.9]} 21.
Ne2 {[%clk 0:02:20.5]} 21... Qb5 {[%clk 0:01:39.7]} 22. g4 {[%clk 0:02:00.1]}
22... hxg4 {[%clk 0:01:26.9]} 23. Bxc5 {[%clk 0:02:00.9]} 23... Qxc5 {[%clk
0:01:21.6]} 24. Nxg4 {[%clk 0:02:02]} 24... Nh5 {[%clk 0:01:16.7]} 25. Rc1
{[%clk 0:02:01.9]} 25... Qb5 {[%clk 0:01:14.8]} 26. Rxc8 {[%clk 0:01:53.1]}
26... Rxc8 {[%clk 0:01:14.6]} 27. Rc1 {[%clk 0:01:55]} 27... Rxc1+ {[%clk
0:01:13.5]} 28. Nxc1 {[%clk 0:01:56.9]} 28... Kh7 {[%clk 0:00:40]} 29. Qd3
{[%clk 0:01:57.5]} 29... Qc5 {[%clk 0:00:37.9]} 30. a3 {[%clk 0:01:43.8]} 30...
Nf4 {[%clk 0:00:37.1]} 31. Qc2 {[%clk 0:01:44]} 31... Qg1 {[%clk 0:00:33]} 32.
axb4 {[%clk 0:01:44.5]} 32... axb4 {[%clk 0:00:33.7]} 33. Ka2 {[%clk 0:01:45.6]}
33... Qd4 {[%clk 0:00:25.8]} 34. Kb3 {[%clk 0:01:33]} 34... Bh6 {[%clk
0:00:17.2]} 35. Nxh6 {[%clk 0:01:33.1]} 35... Kxh6 {[%clk 0:00:17.4]} 36. Na2
{[%clk 0:01:29.1]} 36... Qe3+ {[%clk 0:00:17]} 37. Kxb4 {[%clk 0:01:29.3]} 37...
Qxf3 {[%clk 0:00:18.4]} 38. Kb5 {[%clk 0:01:29.1]} 38... Nd3 {[%clk 0:00:17.5]}
39. Nc3 {[%clk 0:01:23.6]} 39... Nc5 {[%clk 0:00:16.7]} 40. Kc6 {[%clk
0:01:21.6]} 40... Qf6 {[%clk 0:00:15.3]} 41. Nb5 {[%clk 0:01:19.8]} 41... Qe7
{[%clk 0:00:12.3]} 42. Nxd6 {[%clk 0:01:18.2]} 42... Qd7+ {[%clk 0:00:13.1]} 43.
Kxc5 {[%clk 0:01:18.9]} 43... Qc7+ {[%clk 0:00:14.5]} 44. Kb5 {[%clk 0:01:13.6]}
44... Qxc2 {[%clk 0:00:16.4]} 45. Nc4 {[%clk 0:01:14.9]} 45... Qxe4 {[%clk
0:00:15.5]} 46. d6 {[%clk 0:01:14.1]} 46... Qd5+ {[%clk 0:00:16.8]} 47. Kb4
{[%clk 0:01:13.4]} 47... e4 {[%clk 0:00:18]} 48. Kc3 {[%clk 0:01:14.4]} 48... e3
{[%clk 0:00:18.5]} 49. Nxe3 {[%clk 0:01:14.9]} 49... Qxd6 {[%clk 0:00:19.7]} 50.
b4 {[%clk 0:01:14.5]} 50... Kh5 {[%clk 0:00:20]} 51. b5 {[%clk 0:01:14.7]} 51...
Kxh4 {[%clk 0:00:20.8]} 52. Nc4 {[%clk 0:01:14.2]} 52... Qc5 {[%clk 0:00:21.8]}
53. b6 {[%clk 0:01:14.4]} 53... Qc6 {[%clk 0:00:22.8]} 54. Kb4 {[%clk
0:01:14.5]} 54... g5 {[%clk 0:00:23.3]} 55. Ka5 {[%clk 0:01:11.7]} 55... Qxc4
{[%clk 0:00:23.5]} 56. b7 {[%clk 0:01:12.7]} 56... Qb3 {[%clk 0:00:24.7]} 57.
b8=Q {[%clk 0:01:11]} 57... Qxb8 {[%clk 0:00:24.3]} 0-1

[Event "*** MasterClass Titled Tuesday Blitz"]
[Site "Chess.com"]
[Date "2017.12.12"]
[Round "8"]
[White "nurmiTV"]
[Black "marreta84"]
[Result "0-1"]
[WhiteElo "2434"]
[BlackElo "2326"]
[TimeControl "180+2"]
[EndTime "14:52:56 PST"]
[Termination "marreta84 won on time"]

1. c4 {[%clk 0:03:00.1]} 1... Nf6 {[%clk 0:02:57.5]} 2. Nc3 {[%clk 0:03:00.9]}
2... g6 {[%clk 0:02:57.7]} 3. g3 {[%clk 0:03:01.7]} 3... Bg7 {[%clk 0:02:59.2]}
4. Bg2 {[%clk 0:03:03]} 4... d6 {[%clk 0:03:00.9]} 5. Nf3 {[%clk 0:03:04.5]}
5... O-O {[%clk 0:03:02.1]} 6. O-O {[%clk 0:03:06]} 6... Nc6 {[%clk 0:03:03.2]}
7. d3 {[%clk 0:03:07.4]} 7... e5 {[%clk 0:03:03.7]} 8. Rb1 {[%clk 0:03:08.8]}
8... a5 {[%clk 0:03:04]} 9. a3 {[%clk 0:03:10.1]} 9... Nh5 {[%clk 0:03:02.3]}
10. b4 {[%clk 0:03:09.9]} 10... axb4 {[%clk 0:03:03.2]} 11. axb4 {[%clk
0:03:11.8]} 11... f5 {[%clk 0:03:03]} 12. Bg5 {[%clk 0:03:10.7]} 12... Nf6
{[%clk 0:03:01.2]} 13. Nd5 {[%clk 0:03:10]} 13... Ne7 {[%clk 0:02:58.1]} 14. Nd2
{[%clk 0:02:54]} 14... Nexd5 {[%clk 0:02:55.6]} 15. Bxd5+ {[%clk 0:02:54.3]}
15... Kh8 {[%clk 0:02:57.1]} 16. Bg2 {[%clk 0:02:50.7]} 16... h6 {[%clk
0:02:56.6]} 17. Bxf6 {[%clk 0:02:51.5]} 17... Qxf6 {[%clk 0:02:57.6]} 18. f4
{[%clk 0:02:51.2]} 18... exf4 {[%clk 0:02:53.9]} 19. Rxf4 {[%clk 0:02:45.8]}
19... Qe7 {[%clk 0:02:51.9]} 20. e4 {[%clk 0:02:42.4]} 20... g5 {[%clk
0:02:49.7]} 21. Rf1 {[%clk 0:02:42.7]} 21... c6 {[%clk 0:02:27.9]} 22. b5 {[%clk
0:02:42.1]} 22... Bd7 {[%clk 0:02:23.1]} 23. Kh1 {[%clk 0:02:39.1]} 23... fxe4
{[%clk 0:02:21.6]} 24. Nxe4 {[%clk 0:02:36.5]} 24... Rxf1+ {[%clk 0:02:11.2]}
25. Qxf1 {[%clk 0:02:36.2]} 25... Rf8 {[%clk 0:01:58.4]} 26. Qg1 {[%clk
0:02:21.3]} 26... Bg4 {[%clk 0:01:40.5]} 27. bxc6 {[%clk 0:02:12.4]} 27... bxc6
{[%clk 0:01:42.4]} 28. Qb6 {[%clk 0:02:13.3]} 28... d5 {[%clk 0:01:36]} 29. Nd2
{[%clk 0:01:56.5]} 29... Qe2 {[%clk 0:01:30.6]} 30. Qxc6 {[%clk 0:01:32.7]}
30... Qxd2 {[%clk 0:01:28.7]} 31. Qxd5 {[%clk 0:01:33.5]} 31... Bf5 {[%clk
0:00:59.1]} 32. Bf1 {[%clk 0:01:14.4]} 32... Qe3 {[%clk 0:00:51.1]} 33. c5
{[%clk 0:01:09]} 33... Bd4 {[%clk 0:00:48.9]} 34. Qg2 {[%clk 0:01:00.4]} 34...
Bh3 {[%clk 0:00:40.5]} 35. c6 {[%clk 0:00:53.1]} 35... Bxg2+ {[%clk 0:00:37.8]}
36. Bxg2 {[%clk 0:00:55]} 36... Qxd3 {[%clk 0:00:29.8]} 37. Re1 {[%clk
0:00:48.6]} 37... Qd2 {[%clk 0:00:28.8]} 38. Rb1 {[%clk 0:00:40.5]} 38... Qc2
{[%clk 0:00:22.8]} 39. Re1 {[%clk 0:00:37.8]} 39... Rf2 {[%clk 0:00:22.3]} 40.
Rg1 {[%clk 0:00:38.5]} 40... Re2 {[%clk 0:00:20.6]} 41. c7 {[%clk 0:00:36.9]}
41... Bxg1 {[%clk 0:00:21.1]} 42. c8=Q+ {[%clk 0:00:35.3]} 42... Qxc8 {[%clk
0:00:21.8]} 43. Kxg1 {[%clk 0:00:11.1]} 43... Qc5+ {[%clk 0:00:09.8]} 0-1

[Event "*** MasterClass Titled Tuesday Blitz"]
[Site "Chess.com"]
[Date "2017.12.12"]
[Round "8"]
[White "Noukii"]
[Black "TomsKantans"]
[Result "1-0"]
[WhiteElo "2611"]
[BlackElo "2438"]
[TimeControl "180+2"]
[EndTime "14:53:07 PST"]
[Termination "Noukii won on time"]

1. d4 {[%clk 0:01:04.3]} 1... Nf6 {[%clk 0:02:59.5]} 2. c4 {[%clk 0:01:04.6]}
2... g6 {[%clk 0:03:00.2]} 3. Nc3 {[%clk 0:01:05.9]} 3... d5 {[%clk 0:03:01.5]}
4. Bg5 {[%clk 0:01:07.5]} 4... Bg7 {[%clk 0:03:02.1]} 5. Nf3 {[%clk 0:01:08.2]}
5... Ne4 {[%clk 0:03:02.4]} 6. Bh4 {[%clk 0:01:09.5]} 6... c5 {[%clk 0:03:00.8]}
7. cxd5 {[%clk 0:01:08.9]} 7... Nxc3 {[%clk 0:03:01]} 8. bxc3 {[%clk 0:01:10.8]}
8... Qxd5 {[%clk 0:03:01.6]} 9. e3 {[%clk 0:01:12.4]} 9... cxd4 {[%clk
0:02:56.2]} 10. cxd4 {[%clk 0:01:12.9]} 10... Nc6 {[%clk 0:02:56.6]} 11. Be2
{[%clk 0:01:13]} 11... O-O {[%clk 0:02:55.3]} 12. O-O {[%clk 0:01:13.8]} 12...
Bf5 {[%clk 0:02:38.6]} 13. Qb3 {[%clk 0:01:11.8]} 13... Be4 {[%clk 0:02:27.3]}
14. Qxd5 {[%clk 0:00:43.8]} 14... Bxd5 {[%clk 0:02:29.2]} 15. Rab1 {[%clk
0:00:39.3]} 15... e5 {[%clk 0:02:12.3]} 16. Nxe5 {[%clk 0:00:31.6]} 16... Nxe5
{[%clk 0:02:09.5]} 17. dxe5 {[%clk 0:00:32.9]} 17... Bxa2 {[%clk 0:02:10.7]} 18.
Rb2 {[%clk 0:00:15.7]} 18... Bd5 {[%clk 0:02:09.9]} 19. f4 {[%clk 0:00:17.3]}
19... Rfc8 {[%clk 0:02:02.9]} 20. Rd1 {[%clk 0:00:18.8]} 20... Be4 {[%clk
0:01:56.9]} 21. Bg4 {[%clk 0:00:17.8]} 21... Rc7 {[%clk 0:01:54.2]} 22. Rbd2
{[%clk 0:00:18.6]} 22... h5 {[%clk 0:01:46.5]} 23. Be2 {[%clk 0:00:15.4]} 23...
a5 {[%clk 0:01:30.6]} 24. Rd4 {[%clk 0:00:16.1]} 24... Bc2 {[%clk 0:01:22.2]}
25. Rc1 {[%clk 0:00:08.8]} 25... Bf8 {[%clk 0:01:08.4]} 26. Bd8 {[%clk
0:00:07.9]} 26... Rcc8 {[%clk 0:00:59.4]} 27. Bf6 {[%clk 0:00:07.7]} 27... Bb3
{[%clk 0:00:48.3]} 28. Rb1 {[%clk 0:00:04.2]} 28... a4 {[%clk 0:00:45.2]} 29.
Bf3 {[%clk 0:00:05.7]} 29... Ra7 {[%clk 0:00:37.4]} 30. Kf2 {[%clk 0:00:05.9]}
30... b5 {[%clk 0:00:37.5]} 31. f5 {[%clk 0:00:06.3]} 31... Rc2+ {[%clk
0:00:29.5]} 32. Kg3 {[%clk 0:00:07.2]} 32... gxf5 {[%clk 0:00:30.1]} 33. Rd8
{[%clk 0:00:06]} 33... Rcc7 {[%clk 0:00:08.9]} 34. Bxh5 {[%clk 0:00:07]} 34...
Bc4 {[%clk 0:00:05]} 35. Kf4 {[%clk 0:00:07.5]} 35... a3 {[%clk 0:00:06.3]} 36.
g4 {[%clk 0:00:07.6]} 36... a2 {[%clk 0:00:07.6]} 37. Ra1 {[%clk 0:00:08.8]}
37... Rd7 {[%clk 0:00:07.4]} 38. Rc8 {[%clk 0:00:08.2]} 38... Ra5 {[%clk
0:00:07.7]} 39. gxf5 {[%clk 0:00:09]} 39... Ra4 {[%clk 0:00:06.5]} 40. Rg1+
{[%clk 0:00:07.5]} 40... Kh7 {[%clk 0:00:07.5]} 41. Rxf8 {[%clk 0:00:08.7]}
41... Be2+ {[%clk 0:00:04.3]} 42. Kg5 {[%clk 0:00:08.8]} 1-0

[Event "*** MasterClass Titled Tuesday Blitz"]
[Site "Chess.com"]
[Date "2017.12.12"]
[Round "8"]
[White "BillCoe"]
[Black "AndrewDGreen"]
[Result "0-1"]
[WhiteElo "1894"]
[BlackElo "2078"]
[TimeControl "180+2"]
[EndTime "14:53:21 PST"]
[Termination "AndrewDGreen won by resignation"]

1. e4 {[%clk 0:03:01.9]} 1... Nf6 {[%clk 0:03:00.2]} 2. e5 {[%clk 0:03:01.6]}
2... Nd5 {[%clk 0:03:01.5]} 3. g3 {[%clk 0:03:01.9]} 3... d6 {[%clk 0:03:02.3]}
4. exd6 {[%clk 0:03:02.7]} 4... exd6 {[%clk 0:02:58.6]} 5. Bg2 {[%clk
0:03:03.5]} 5... Nb6 {[%clk 0:02:56.8]} 6. Nf3 {[%clk 0:03:03.6]} 6... Be7
{[%clk 0:02:58]} 7. O-O {[%clk 0:03:04.3]} 7... O-O {[%clk 0:02:59.1]} 8. c3
{[%clk 0:03:04.5]} 8... Be6 {[%clk 0:02:57.9]} 9. d4 {[%clk 0:03:05]} 9... c6
{[%clk 0:02:59]} 10. b3 {[%clk 0:03:05.5]} 10... Qd7 {[%clk 0:02:57.7]} 11. Re1
{[%clk 0:03:04.3]} 11... Bf6 {[%clk 0:02:57.3]} 12. Bb2 {[%clk 0:03:02.6]} 12...
Bh3 {[%clk 0:02:55.4]} 13. Bh1 {[%clk 0:03:01.9]} 13... Na6 {[%clk 0:02:56.5]}
14. Nbd2 {[%clk 0:03:01.4]} 14... Rae8 {[%clk 0:02:56.9]} 15. Ne4 {[%clk
0:03:01.2]} 15... Bd8 {[%clk 0:02:49.9]} 16. a3 {[%clk 0:02:53.6]} 16... f5
{[%clk 0:02:43.5]} 17. Ned2 {[%clk 0:02:48.3]} 17... f4 {[%clk 0:02:43.5]} 18.
Ne4 {[%clk 0:02:39.3]} 18... fxg3 {[%clk 0:02:39.6]} 19. hxg3 {[%clk 0:02:38.4]}
19... Bg4 {[%clk 0:02:09.9]} 20. Ned2 {[%clk 0:02:26.4]} 20... Qf5 {[%clk
0:01:42.8]} 21. Rxe8 {[%clk 0:02:21.2]} 21... Rxe8 {[%clk 0:01:44.7]} 22. Qb1
{[%clk 0:02:20.9]} 22... Qh5 {[%clk 0:01:41.8]} 23. Qd3 {[%clk 0:02:17.4]} 23...
Bf5 {[%clk 0:01:34.1]} 24. Qf1 {[%clk 0:02:14.3]} 24... Nd5 {[%clk 0:01:21.2]}
25. c4 {[%clk 0:02:02.5]} 25... Nf6 {[%clk 0:01:00]} 26. Bg2 {[%clk 0:01:58.8]}
26... Ng4 {[%clk 0:00:49.7]} 27. Re1 {[%clk 0:01:58.4]} 27... Rf8 {[%clk
0:00:48.3]} 28. Qe2 {[%clk 0:01:51.5]} 28... Nc7 {[%clk 0:00:42]} 29. b4 {[%clk
0:01:43.6]} 29... Ne6 {[%clk 0:00:34.4]} 30. d5 {[%clk 0:01:27.7]} 30... cxd5
{[%clk 0:00:32.3]} 31. cxd5 {[%clk 0:01:27.4]} 31... Ng5 {[%clk 0:00:33.1]} 32.
Qb5 {[%clk 0:01:21.1]} 32... Nh3+ {[%clk 0:00:23.8]} 33. Bxh3 {[%clk 0:01:17.5]}
33... Qxh3 {[%clk 0:00:25.7]} 34. Qf1 {[%clk 0:01:17.3]} 34... Qh5 {[%clk
0:00:23.1]} 35. Qb5 {[%clk 0:01:08.9]} 35... Bb6 {[%clk 0:00:21.8]} 36. Re2
{[%clk 0:00:56.9]} 36... Qg6 {[%clk 0:00:15.9]} 37. Qa4 {[%clk 0:00:13.4]} 37...
Bd3 {[%clk 0:00:15.6]} 38. Re6 {[%clk 0:00:14.5]} 38... Bxf2+ {[%clk 0:00:15.1]}
39. Kg2 {[%clk 0:00:14.9]} 39... Qh5 {[%clk 0:00:15.4]} 40. Qd1 {[%clk
0:00:14.3]} 40... Ne3+ {[%clk 0:00:12.4]} 41. Kxf2 {[%clk 0:00:11.9]} 41...
Nxd1+ {[%clk 0:00:09.3]} 42. Kg2 {[%clk 0:00:12.1]} 42... Bg6 {[%clk 0:00:07.1]}
43. Re1 {[%clk 0:00:11.1]} 43... Nxb2 {[%clk 0:00:07.3]} 0-1

[Event "*** MasterClass Titled Tuesday Blitz"]
[Site "Chess.com"]
[Date "2017.12.12"]
[Round "8"]
[White "BartoszSocko"]
[Black "1stSecond"]
[Result "0-1"]
[WhiteElo "2519"]
[BlackElo "2489"]
[TimeControl "180+2"]
[EndTime "14:53:22 PST"]
[Termination "1stSecond won by resignation"]

1. e4 {[%clk 0:02:59.7]} 1... e5 {[%clk 0:03:00.8]} 2. Nf3 {[%clk 0:03:00.2]}
2... Nc6 {[%clk 0:03:02.4]} 3. Bb5 {[%clk 0:03:01.3]} 3... a6 {[%clk 0:03:03.7]}
4. Bxc6 {[%clk 0:03:02.1]} 4... dxc6 {[%clk 0:03:04.9]} 5. O-O {[%clk
0:03:03.1]} 5... Bg4 {[%clk 0:03:06.1]} 6. h3 {[%clk 0:03:02.8]} 6... h5 {[%clk
0:03:07.6]} 7. d3 {[%clk 0:03:03]} 7... Qf6 {[%clk 0:03:08.4]} 8. Be3 {[%clk
0:03:04.2]} 8... Ne7 {[%clk 0:03:06.8]} 9. Nbd2 {[%clk 0:03:04.8]} 9... Ng6
{[%clk 0:03:07.4]} 10. Re1 {[%clk 0:02:50.5]} 10... Bxf3 {[%clk 0:02:43.2]} 11.
Qxf3 {[%clk 0:02:49.6]} 11... Qxf3 {[%clk 0:02:33.5]} 12. Nxf3 {[%clk
0:02:51.5]} 12... f6 {[%clk 0:02:23.6]} 13. d4 {[%clk 0:02:52.5]} 13... exd4
{[%clk 0:02:20.7]} 14. Bxd4 {[%clk 0:02:48.5]} 14... Bd6 {[%clk 0:02:05.6]} 15.
e5 {[%clk 0:02:46.4]} 15... fxe5 {[%clk 0:02:06.2]} 16. Nxe5 {[%clk 0:02:48.3]}
16... Nxe5 {[%clk 0:02:06.7]} 17. Bxe5 {[%clk 0:02:50.2]} 17... Kf7 {[%clk
0:02:07.5]} 18. Bc3 {[%clk 0:02:44.1]} 18... Rhe8 {[%clk 0:02:03.7]} 19. Kf1
{[%clk 0:02:45.3]} 19... c5 {[%clk 0:01:55.4]} 20. Rad1 {[%clk 0:02:42.7]} 20...
g6 {[%clk 0:01:53]} 21. Rd3 {[%clk 0:02:34.9]} 21... Rxe1+ {[%clk 0:01:52.9]}
22. Kxe1 {[%clk 0:02:36.8]} 22... Re8+ {[%clk 0:01:54]} 23. Kf1 {[%clk
0:02:37.2]} 23... Re6 {[%clk 0:01:42.3]} 24. Rf3+ {[%clk 0:02:37.8]} 24... Ke7
{[%clk 0:01:42]} 25. g4 {[%clk 0:02:32.5]} 25... hxg4 {[%clk 0:01:40.4]} 26.
hxg4 {[%clk 0:02:34.4]} 26... c4 {[%clk 0:01:37.3]} 27. Rh3 {[%clk 0:02:30]}
27... b5 {[%clk 0:01:30.9]} 28. Rh7+ {[%clk 0:02:29.8]} 28... Ke8 {[%clk
0:01:32.4]} 29. g5 {[%clk 0:02:24.1]} 29... Be7 {[%clk 0:01:28.9]} 30. f4 {[%clk
0:02:20.1]} 30... Re4 {[%clk 0:01:27.5]} 31. Bd2 {[%clk 0:02:13.2]} 31... Bd6
{[%clk 0:01:23.7]} 32. Kf2 {[%clk 0:02:08.2]} 32... b4 {[%clk 0:01:15.9]} 33.
Kf3 {[%clk 0:02:09]} 33... Re6 {[%clk 0:00:57.2]} 34. Be3 {[%clk 0:02:04.3]}
34... a5 {[%clk 0:00:58.1]} 35. Bd4 {[%clk 0:02:04.6]} 35... a4 {[%clk
0:00:55.5]} 36. Bf6 {[%clk 0:01:59.9]} 36... Re1 {[%clk 0:00:42.8]} 37. Rg7
{[%clk 0:01:08.9]} 37... Rf1+ {[%clk 0:00:43.9]} 38. Ke2 {[%clk 0:01:10]} 38...
Rxf4 {[%clk 0:00:45.3]} 39. Rxg6 {[%clk 0:01:11.5]} 39... Rg4 {[%clk 0:00:44.7]}
40. Kf3 {[%clk 0:01:09]} 40... Rf4+ {[%clk 0:00:43.3]} 41. Ke3 {[%clk
0:01:09.1]} 41... Rg4 {[%clk 0:00:44.1]} 42. Rg7 {[%clk 0:01:04.4]} 42... Rg2
{[%clk 0:00:42.5]} 43. g6 {[%clk 0:01:05.4]} 43... Rxc2 {[%clk 0:00:16.6]} 44.
Rg8+ {[%clk 0:01:05.9]} 44... Kd7 {[%clk 0:00:18.2]} 45. g7 {[%clk 0:01:07.8]}
45... Rg2 {[%clk 0:00:17.4]} 46. Kf3 {[%clk 0:00:45.2]} 46... Rg6 {[%clk
0:00:16.3]} 47. Rf8 {[%clk 0:00:43.2]} 47... Ke6 {[%clk 0:00:15.4]} 48. Bd4
{[%clk 0:00:41.6]} 48... c5 {[%clk 0:00:16.7]} 49. Bf6 {[%clk 0:00:33.5]} 49...
c3 {[%clk 0:00:16.6]} 50. bxc3 {[%clk 0:00:34.2]} 50... b3 {[%clk 0:00:17.9]}
51. axb3 {[%clk 0:00:35.5]} 51... axb3 {[%clk 0:00:19.8]} 52. c4 {[%clk
0:00:36.8]} 52... Bxf8 {[%clk 0:00:19.9]} 53. gxf8=Q {[%clk 0:00:26.1]} 53...
Rxf6+ {[%clk 0:00:20.8]} 54. Qxf6+ {[%clk 0:00:27.7]} 54... Kxf6 {[%clk
0:00:22.7]} 55. Ke3 {[%clk 0:00:29.6]} 55... b2 {[%clk 0:00:23.5]} 56. Kd2
{[%clk 0:00:31.5]} 0-1